{"text_format":"1","workbook":"xlsx","n_sheets":9,"sheets":["Списание","Цены на инертные","Контрагент","АБС","Отгрузка","Спецификация","Завод","Списание завод","LOG"],"not_rendered":{"charts":0,"images":0,"macros":1,"external_links":0,"defined_names":3,"comments":0,"pivot_tables":0},"unopened":[],"bounds":{"document_bytes":16777216,"sheet_cells":100000,"rows_first":2000,"rows_last":500,"rows_between":2000,"halvings":0,"cell_chars":16384,"cell_head_chars":4096},"cells_cut":0,"cells_raw":0,"read":"whole","date_system":"1900"}

{"sheet":"Списание","index":0,"n_rows":5,"n_cols":25,"rows_kept":5,"cut":false,"hidden":true,"merged":[]}
["Начало","Окончание","Продукция","Цемент","Песок строительный","Песок растворный","Гранит","Гравий","Вторичка","Вода","СП-3","Мурапор","Криопласт","Себестоимость",null,null,null,null,null,null,null,null,null,null,"Цены на инертные"]
["2018-01-01","2018-03-02","БСТ В7,5 П3 F100 W2 (Гравий)",167,1000,null,null,945,null,180,2.21,null,null,{"$f":"(Нормы_расхода[[#This Row],[Цемент]]/1000*(SUMPRODUCT(Цены_инертные[Цемент]*(Цены_инертные[Начало]<=Нормы_расхода[[#This Row],[Начало]])*((Цены_инертные[Окончание]=\"\")*99999+Цены_инертные[Окончание]>=Нормы_расхода[[#This Row],[Окончание]]))))+(Нормы_расхода[[#This Row],[Песок строительный]]/1000*(SUMPRODUCT(Цены_инертные[Песок строительный]*(Цены_инертные[Начало]<=Нормы_расхода[[#This Row],[Начало]])*((Цены_инертные[Окончание]=\"\")*99999+Цены_инертные[Окончание]>=Нормы_расхода[[#This Row],[Окончание]]))))+(Нормы_расхода[[#This Row],[Песок растворный]]/1000*(SUMPRODUCT(Цены_инертные[Песок растворный]*(Цены_инертные[Начало]<=Нормы_расхода[[#This Row],[Начало]])*((Цены_инертные[Окончание]=\"\")*99999+Цены_инертные[Окончание]>=Нормы_расхода[[#This Row],[Окончание]]))))+(Нормы_расхода[[#This Row],[Гранит]]/1000*(SUMPRODUCT(Цены_инертные[Гранит]*(Цены_инертные[Начало]<=Нормы_расхода[[#This Row],[Начало]])*((Цены_инертные[Окончание]=\"\")*99999+Цены_инертные[Окончание]>=Нормы_расхода[[#This Row],[Окончание]]))))+(Нормы_расхода[[#This Row],[Гравий]]/1000*(SUMPRODUCT(Цены_инертные[Гравий]*(Цены_инертные[Начало]<=Нормы_расхода[[#This Row],[Начало]])*((Цены_инертные[Окончание]=\"\")*99999+Цены_инертные[Окончание]>=Нормы_расхода[[#This Row],[Окончание]]))))+(Нормы_расхода[[#This Row],[Вторичка]]/1000*(SUMPRODUCT(Цены_инертные[Вторичка]*(Цены_инертные[Начало]<=Нормы_расхода[[#This Row],[Начало]])*((Цены_инертные[Окончание]=\"\")*99999+Цены_инертные[Окончание]>=Нормы_расхода[[#This Row],[Окончание]]))))+(Нормы_расхода[[#This Row],[Вода]]/1000*(SUMPRODUCT(Цены_инертные[Вода]*(Цены_инертные[Начало]<=Нормы_расхода[[#This Row],[Начало]])*((Цены_инертные[Окончание]=\"\")*99999+Цены_инертные[Окончание]>=Нормы_расхода[[#This Row],[Окончание]]))))+(Нормы_расхода[[#This Row],[СП-3]]*(SUMPRODUCT(Цены_инертные[СП-3]*(Цены_инертные[Начало]<=Нормы_расхода[[#This Row],[Начало]])*((Цены_инертные[Окончание]=\"\")*99999+Цены_инертные[Окончание]>=Нормы_расхода[[#This Row],[Окончание]]))))+(Нормы_расхода[[#This Row],[Мурапор]]*(SUMPRODUCT(Цены_инертные[Мурапор]*(Цены_инертные[Начало]<=Нормы_расхода[[#This Row],[Начало]])*((Цены_инертные[Окончание]=\"\")*99999+Цены_инертные[Окончание]>=Нормы_расхода[[#This Row],[Окончание]]))))+(Нормы_расхода[[#This Row],[Криопласт]]*(SUMPRODUCT(Цены_инертные[Криопласт]*(Цены_инертные[Начало]<=Нормы_расхода[[#This Row],[Начало]])*((Цены_инертные[Окончание]=\"\")*99999+Цены_инертные[Окончание]>=Нормы_расхода[[#This Row],[Окончание]]))))","v":2810.0549999999998}]
["2018-03-03","2018-03-05","БСТ В7,5 П3 F100 W2 (Гравий)",175,850,null,null,1040,null,175,null,1.8,null,{"$f":"(Нормы_расхода[[#This Row],[Цемент]]/1000*(SUMPRODUCT(Цены_инертные[Цемент]*(Цены_инертные[Начало]<=Нормы_расхода[[#This Row],[Начало]])*((Цены_инертные[Окончание]=\"\")*99999+Цены_инертные[Окончание]>=Нормы_расхода[[#This Row],[Окончание]]))))+(Нормы_расхода[[#This Row],[Песок строительный]]/1000*(SUMPRODUCT(Цены_инертные[Песок строительный]*(Цены_инертные[Начало]<=Нормы_расхода[[#This Row],[Начало]])*((Цены_инертные[Окончание]=\"\")*99999+Цены_инертные[Окончание]>=Нормы_расхода[[#This Row],[Окончание]]))))+(Нормы_расхода[[#This Row],[Песок растворный]]/1000*(SUMPRODUCT(Цены_инертные[Песок растворный]*(Цены_инертные[Начало]<=Нормы_расхода[[#This Row],[Начало]])*((Цены_инертные[Окончание]=\"\")*99999+Цены_инертные[Окончание]>=Нормы_расхода[[#This Row],[Окончание]]))))+(Нормы_расхода[[#This Row],[Гранит]]/1000*(SUMPRODUCT(Цены_инертные[Гранит]*(Цены_инертные[Начало]<=Нормы_расхода[[#This Row],[Начало]])*((Цены_инертные[Окончание]=\"\")*99999+Цены_инертные[Окончание]>=Нормы_расхода[[#This Row],[Окончание]]))))+(Нормы_расхода[[#This Row],[Гравий]]/1000*(SUMPRODUCT(Цены_инертные[Гравий]*(Цены_инертные[Начало]<=Нормы_расхода[[#This Row],[Начало]])*((Цены_инертные[Окончание]=\"\")*99999+Цены_инертные[Окончание]>=Нормы_расхода[[#This Row],[Окончание]]))))+(Нормы_расхода[[#This Row],[Вторичка]]/1000*(SUMPRODUCT(Цены_инертные[Вторичка]*(Цены_инертные[Начало]<=Нормы_расхода[[#This Row],[Начало]])*((Цены_инертные[Окончание]=\"\")*99999+Цены_инертные[Окончание]>=Нормы_расхода[[#This Row],[Окончание]]))))+(Нормы_расхода[[#This Row],[Вода]]/1000*(SUMPRODUCT(Цены_инертные[Вода]*(Цены_инертные[Начало]<=Нормы_расхода[[#This Row],[Начало]])*((Цены_инертные[Окончание]=\"\")*99999+Цены_инертные[Окончание]>=Нормы_расхода[[#This Row],[Окончание]]))))+(Нормы_расхода[[#This Row],[СП-3]]*(SUMPRODUCT(Цены_инертные[СП-3]*(Цены_инертные[Начало]<=Нормы_расхода[[#This Row],[Начало]])*((Цены_инертные[Окончание]=\"\")*99999+Цены_инертные[Окончание]>=Нормы_расхода[[#This Row],[Окончание]]))))+(Нормы_расхода[[#This Row],[Мурапор]]*(SUMPRODUCT(Цены_инертные[Мурапор]*(Цены_инертные[Начало]<=Нормы_расхода[[#This Row],[Начало]])*((Цены_инертные[Окончание]=\"\")*99999+Цены_инертные[Окончание]>=Нормы_расхода[[#This Row],[Окончание]]))))+(Нормы_расхода[[#This Row],[Криопласт]]*(SUMPRODUCT(Цены_инертные[Криопласт]*(Цены_инертные[Начало]<=Нормы_расхода[[#This Row],[Начало]])*((Цены_инертные[Окончание]=\"\")*99999+Цены_инертные[Окончание]>=Нормы_расхода[[#This Row],[Окончание]]))))","v":3167.9749999999999}]
[null,null,null,null,null,null,null,null,null,null,null,null,null,{"$f":"(Нормы_расхода[[#This Row],[Цемент]]/1000*(SUMPRODUCT(Цены_инертные[Цемент]*(Цены_инертные[Начало]<=Нормы_расхода[[#This Row],[Начало]])*((Цены_инертные[Окончание]=\"\")*99999+Цены_инертные[Окончание]>=Нормы_расхода[[#This Row],[Окончание]]))))+(Нормы_расхода[[#This Row],[Песок строительный]]/1000*(SUMPRODUCT(Цены_инертные[Песок строительный]*(Цены_инертные[Начало]<=Нормы_расхода[[#This Row],[Начало]])*((Цены_инертные[Окончание]=\"\")*99999+Цены_инертные[Окончание]>=Нормы_расхода[[#This Row],[Окончание]]))))+(Нормы_расхода[[#This Row],[Песок растворный]]/1000*(SUMPRODUCT(Цены_инертные[Песок растворный]*(Цены_инертные[Начало]<=Нормы_расхода[[#This Row],[Начало]])*((Цены_инертные[Окончание]=\"\")*99999+Цены_инертные[Окончание]>=Нормы_расхода[[#This Row],[Окончание]]))))+(Нормы_расхода[[#This Row],[Гранит]]/1000*(SUMPRODUCT(Цены_инертные[Гранит]*(Цены_инертные[Начало]<=Нормы_расхода[[#This Row],[Начало]])*((Цены_инертные[Окончание]=\"\")*99999+Цены_инертные[Окончание]>=Нормы_расхода[[#This Row],[Окончание]]))))+(Нормы_расхода[[#This Row],[Гравий]]/1000*(SUMPRODUCT(Цены_инертные[Гравий]*(Цены_инертные[Начало]<=Нормы_расхода[[#This Row],[Начало]])*((Цены_инертные[Окончание]=\"\")*99999+Цены_инертные[Окончание]>=Нормы_расхода[[#This Row],[Окончание]]))))+(Нормы_расхода[[#This Row],[Вторичка]]/1000*(SUMPRODUCT(Цены_инертные[Вторичка]*(Цены_инертные[Начало]<=Нормы_расхода[[#This Row],[Начало]])*((Цены_инертные[Окончание]=\"\")*99999+Цены_инертные[Окончание]>=Нормы_расхода[[#This Row],[Окончание]]))))+(Нормы_расхода[[#This Row],[Вода]]/1000*(SUMPRODUCT(Цены_инертные[Вода]*(Цены_инертные[Начало]<=Нормы_расхода[[#This Row],[Начало]])*((Цены_инертные[Окончание]=\"\")*99999+Цены_инертные[Окончание]>=Нормы_расхода[[#This Row],[Окончание]]))))+(Нормы_расхода[[#This Row],[СП-3]]*(SUMPRODUCT(Цены_инертные[СП-3]*(Цены_инертные[Начало]<=Нормы_расхода[[#This Row],[Начало]])*((Цены_инертные[Окончание]=\"\")*99999+Цены_инертные[Окончание]>=Нормы_расхода[[#This Row],[Окончание]]))))+(Нормы_расхода[[#This Row],[Мурапор]]*(SUMPRODUCT(Цены_инертные[Мурапор]*(Цены_инертные[Начало]<=Нормы_расхода[[#This Row],[Начало]])*((Цены_инертные[Окончание]=\"\")*99999+Цены_инертные[Окончание]>=Нормы_расхода[[#This Row],[Окончание]]))))+(Нормы_расхода[[#This Row],[Криопласт]]*(SUMPRODUCT(Цены_инертные[Криопласт]*(Цены_инертные[Начало]<=Нормы_расхода[[#This Row],[Начало]])*((Цены_инертные[Окончание]=\"\")*99999+Цены_инертные[Окончание]>=Нормы_расхода[[#This Row],[Окончание]]))))","v":0}]
[null,null,null,null,null,null,null,null,null,null,null,null,null,{"$f":"(Нормы_расхода[[#This Row],[Цемент]]/1000*(SUMPRODUCT(Цены_инертные[Цемент]*(Цены_инертные[Начало]<=Нормы_расхода[[#This Row],[Начало]])*((Цены_инертные[Окончание]=\"\")*99999+Цены_инертные[Окончание]>=Нормы_расхода[[#This Row],[Окончание]]))))+(Нормы_расхода[[#This Row],[Песок строительный]]/1000*(SUMPRODUCT(Цены_инертные[Песок строительный]*(Цены_инертные[Начало]<=Нормы_расхода[[#This Row],[Начало]])*((Цены_инертные[Окончание]=\"\")*99999+Цены_инертные[Окончание]>=Нормы_расхода[[#This Row],[Окончание]]))))+(Нормы_расхода[[#This Row],[Песок растворный]]/1000*(SUMPRODUCT(Цены_инертные[Песок растворный]*(Цены_инертные[Начало]<=Нормы_расхода[[#This Row],[Начало]])*((Цены_инертные[Окончание]=\"\")*99999+Цены_инертные[Окончание]>=Нормы_расхода[[#This Row],[Окончание]]))))+(Нормы_расхода[[#This Row],[Гранит]]/1000*(SUMPRODUCT(Цены_инертные[Гранит]*(Цены_инертные[Начало]<=Нормы_расхода[[#This Row],[Начало]])*((Цены_инертные[Окончание]=\"\")*99999+Цены_инертные[Окончание]>=Нормы_расхода[[#This Row],[Окончание]]))))+(Нормы_расхода[[#This Row],[Гравий]]/1000*(SUMPRODUCT(Цены_инертные[Гравий]*(Цены_инертные[Начало]<=Нормы_расхода[[#This Row],[Начало]])*((Цены_инертные[Окончание]=\"\")*99999+Цены_инертные[Окончание]>=Нормы_расхода[[#This Row],[Окончание]]))))+(Нормы_расхода[[#This Row],[Вторичка]]/1000*(SUMPRODUCT(Цены_инертные[Вторичка]*(Цены_инертные[Начало]<=Нормы_расхода[[#This Row],[Начало]])*((Цены_инертные[Окончание]=\"\")*99999+Цены_инертные[Окончание]>=Нормы_расхода[[#This Row],[Окончание]]))))+(Нормы_расхода[[#This Row],[Вода]]/1000*(SUMPRODUCT(Цены_инертные[Вода]*(Цены_инертные[Начало]<=Нормы_расхода[[#This Row],[Начало]])*((Цены_инертные[Окончание]=\"\")*99999+Цены_инертные[Окончание]>=Нормы_расхода[[#This Row],[Окончание]]))))+(Нормы_расхода[[#This Row],[СП-3]]*(SUMPRODUCT(Цены_инертные[СП-3]*(Цены_инертные[Начало]<=Нормы_расхода[[#This Row],[Начало]])*((Цены_инертные[Окончание]=\"\")*99999+Цены_инертные[Окончание]>=Нормы_расхода[[#This Row],[Окончание]]))))+(Нормы_расхода[[#This Row],[Мурапор]]*(SUMPRODUCT(Цены_инертные[Мурапор]*(Цены_инертные[Начало]<=Нормы_расхода[[#This Row],[Начало]])*((Цены_инертные[Окончание]=\"\")*99999+Цены_инертные[Окончание]>=Нормы_расхода[[#This Row],[Окончание]]))))+(Нормы_расхода[[#This Row],[Криопласт]]*(SUMPRODUCT(Цены_инертные[Криопласт]*(Цены_инертные[Начало]<=Нормы_расхода[[#This Row],[Начало]])*((Цены_инертные[Окончание]=\"\")*99999+Цены_инертные[Окончание]>=Нормы_расхода[[#This Row],[Окончание]]))))","v":0}]

{"sheet":"Цены на инертные","index":1,"n_rows":3,"n_cols":12,"rows_kept":3,"cut":false,"hidden":true,"merged":[]}
["Начало","Окончание","Цемент","Песок строительный","Песок растворный","Гранит","Гравий","Вторичка","Вода","СП-3","Мурапор","Криопласт"]
["2018-01-01","2018-03-02",4500,580,1500,1800,1510,450,35,20.5,67.7,28]
["2018-03-03","2018-09-05",4650,595,1550,1920,1650,470,37,21,70,30]

{"sheet":"Контрагент","index":2,"n_rows":7,"n_cols":5,"rows_kept":7,"cut":false,"hidden":true,"merged":[]}
["Контрагент","Фамилия","Имя","Должность","Мобильный телефон"]
["ООО \"Атика\"","Шевченко","Дмитрий","Ген.Директор"]
["ООО \"БЭСТ БЕТОН\"","Супрун","Станислав","Ген.Директор"]
["ООО \"Комфорт Плюс\"","Супрун","Игорь","Ген.Директор"]
["ООО \"Фтор Мед Царицыно\"","Захаров","Сергей","Ген.Директор"]
["Ч/Л \"Мифтахов\"","Мифтахов","Илья","Частное лицо"]
["Ч/Л \"Рустам\"",null,null,"Частное лицо"]

{"sheet":"АБС","index":3,"n_rows":27,"n_cols":8,"rows_kept":27,"cut":false,"hidden":true,"merged":[]}
["Поставщик","Госномер ТС","Водитель","Телефон","Марка","Объем","Ось","Порожний"]
["И/П \"Торопов\"","н265ко77","Саидов Эргашали","8-925-209-15-36","Камаз",9,"4-х осный",{"$f":"IF(АБС[[#This Row],[Ось]]=\"4-х осный\",8,IF(АБС[[#This Row],[Ось]]=\"\",\"\",7))","v":8}]
["ООО \"Аист\"","н877ке77","Устинов Рустам","8-925-082-29-95","Маз",9,"4-х осный",{"$f":"IF(АБС[[#This Row],[Ось]]=\"4-х осный\",8,IF(АБС[[#This Row],[Ось]]=\"\",\"\",7))","v":8}]
["ООО \"Атика\"","е922тм777","","","Камаз",8,"4-х осный",{"$f":"IF(АБС[[#This Row],[Ось]]=\"4-х осный\",8,IF(АБС[[#This Row],[Ось]]=\"\",\"\",7))","v":8}]
["ООО \"Атика\"","т956ск777","","","Камаз",8,"4-х осный",{"$f":"IF(АБС[[#This Row],[Ось]]=\"4-х осный\",8,IF(АБС[[#This Row],[Ось]]=\"\",\"\",7))","v":8}]
["ООО \"Атика\"","н001тс777","","","Камаз",8,"4-х осный",{"$f":"IF(АБС[[#This Row],[Ось]]=\"4-х осный\",8,IF(АБС[[#This Row],[Ось]]=\"\",\"\",7))","v":8}]
["Ч/Л \"Райнур\"","в580ух199","Каримов Райнур","8-925-255-51-23","Камаз",7,"3-х осный",{"$f":"IF(АБС[[#This Row],[Ось]]=\"4-х осный\",8,IF(АБС[[#This Row],[Ось]]=\"\",\"\",7))","v":7}]
["Спецстрой","к187ус77","Степанян Виталий","8-925-208-60 / 8-999-800-34-05","Ман",6,"3-х осный",{"$f":"IF(АБС[[#This Row],[Ось]]=\"4-х осный\",8,IF(АБС[[#This Row],[Ось]]=\"\",\"\",7))","v":7}]
["Ч/Л \"Максим\"","к553со62","Ярошенко Андрей","8-909-408-44-40","Ивеко",12,"4-х осный",{"$f":"IF(АБС[[#This Row],[Ось]]=\"4-х осный\",8,IF(АБС[[#This Row],[Ось]]=\"\",\"\",7))","v":8}]
["Ч/Л \"Максим\"","о494кн161","Семенов Сергей","8-966-144-67-08","Ман",10,"4-х осный",{"$f":"IF(АБС[[#This Row],[Ось]]=\"4-х осный\",8,IF(АБС[[#This Row],[Ось]]=\"\",\"\",7))","v":8}]
["Ч/Л \"Мифтахов\"","у573мт199","Мифтахов Илья","8-926-547-47-79","Рено",8,"4-х осный",{"$f":"IF(АБС[[#This Row],[Ось]]=\"4-х осный\",8,IF(АБС[[#This Row],[Ось]]=\"\",\"\",7))","v":8}]
["Ч/Л \"Наумчик\"","т564вт64","Наумчик Сергей","8-926-863-72-26","Ман",10,"3-х осный",{"$f":"IF(АБС[[#This Row],[Ось]]=\"4-х осный\",8,IF(АБС[[#This Row],[Ось]]=\"\",\"\",7))","v":7}]
["Ч/Л \"Рустам\"","м954ко10","Глявин Николай","8-961-108-60-31","Вольво",10,"4-х осный",{"$f":"IF(АБС[[#This Row],[Ось]]=\"4-х осный\",8,IF(АБС[[#This Row],[Ось]]=\"\",\"\",7))","v":8}]
["Ч/Л \"Рустам\"","м954ко10","Жданкин Иван","8-926-844-59-19","Вольво",10,"4-х осный",{"$f":"IF(АБС[[#This Row],[Ось]]=\"4-х осный\",8,IF(АБС[[#This Row],[Ось]]=\"\",\"\",7))","v":8}]
["Ч/Л \"Филипов\"","м646ум76","Филипов Григорий","8-936-777-94-55","Ман",11,"4-х осный",{"$f":"IF(АБС[[#This Row],[Ось]]=\"4-х осный\",8,IF(АБС[[#This Row],[Ось]]=\"\",\"\",7))","v":8}]
[null,null,null,null,null,null,null,{"$f":"IF(АБС[[#This Row],[Ось]]=\"4-х осный\",8,IF(АБС[[#This Row],[Ось]]=\"\",\"\",7))","v":""}]
[null,null,null,null,null,null,null,{"$f":"IF(АБС[[#This Row],[Ось]]=\"4-х осный\",8,IF(АБС[[#This Row],[Ось]]=\"\",\"\",7))","v":""}]
[null,null,null,null,null,null,null,{"$f":"IF(АБС[[#This Row],[Ось]]=\"4-х осный\",8,IF(АБС[[#This Row],[Ось]]=\"\",\"\",7))","v":""}]
[null,null,null,null,null,null,null,{"$f":"IF(АБС[[#This Row],[Ось]]=\"4-х осный\",8,IF(АБС[[#This Row],[Ось]]=\"\",\"\",7))","v":""}]
[null,null,null,null,null,null,null,{"$f":"IF(АБС[[#This Row],[Ось]]=\"4-х осный\",8,IF(АБС[[#This Row],[Ось]]=\"\",\"\",7))","v":""}]
[null,null,null,null,null,null,null,{"$f":"IF(АБС[[#This Row],[Ось]]=\"4-х осный\",8,IF(АБС[[#This Row],[Ось]]=\"\",\"\",7))","v":""}]
[null,null,null,null,null,null,null,{"$f":"IF(АБС[[#This Row],[Ось]]=\"4-х осный\",8,IF(АБС[[#This Row],[Ось]]=\"\",\"\",7))","v":""}]
[null,null,null,null,null,null,null,{"$f":"IF(АБС[[#This Row],[Ось]]=\"4-х осный\",8,IF(АБС[[#This Row],[Ось]]=\"\",\"\",7))","v":""}]
[null,null,null,null,null,null,null,{"$f":"IF(АБС[[#This Row],[Ось]]=\"4-х осный\",8,IF(АБС[[#This Row],[Ось]]=\"\",\"\",7))","v":""}]
[null,null,null,null,null,null,null,{"$f":"IF(АБС[[#This Row],[Ось]]=\"4-х осный\",8,IF(АБС[[#This Row],[Ось]]=\"\",\"\",7))","v":""}]
[null,null,null,null,null,null,null,{"$f":"IF(АБС[[#This Row],[Ось]]=\"4-х осный\",8,IF(АБС[[#This Row],[Ось]]=\"\",\"\",7))","v":""}]
[null,null,null,null,null,null,null,{"$f":"IF(АБС[[#This Row],[Ось]]=\"4-х осный\",8,IF(АБС[[#This Row],[Ось]]=\"\",\"\",7))","v":""}]

{"sheet":"Отгрузка","index":4,"n_rows":14,"n_cols":14,"rows_kept":14,"cut":false,"hidden":true,"merged":[]}
["Дата","Накладная","Контрагент","Госномер ТС","Продукция","Количество","Стоимость","Доставка","ИТОГО","Порожний прогон","Простой","Стоимость ИТОГО","Поставщик","Примечание"]
["2018-01-01",null,"Ч/Л \"Мифтахов\"","у573мт199","БСТ В7,5 П3 F100 W2 (Гравий)",3,{"$f":"SUMPRODUCT(Спецификация[Цена]*(Спецификация[Продукция]=Отгрузка[[#This Row],[Продукция]])*(Спецификация[Контрагент]=Отгрузка[[#This Row],[Контрагент]])*(Спецификация[Начало]<=Отгрузка[[#This Row],[Дата]])*((Спецификация[Окончание]=\"\")*99999+Спецификация[Окончание]>=Отгрузка[[#This Row],[Дата]]))","v":0},500,{"$f":"Отгрузка[[#This Row],[Количество]]*Отгрузка[[#This Row],[Стоимость]]+Отгрузка[[#This Row],[Доставка]]*Отгрузка[[#This Row],[Количество]]","v":1500},{"$f":"IFERROR(MAX(,MIN(VLOOKUP(Отгрузка[[#This Row],[Госномер ТС]],АБС[[Госномер ТС]:[Объем]],5,),7+(LEFTB(VLOOKUP(Отгрузка[[#This Row],[Госномер ТС]],АБС[[Госномер ТС]:[Ось]],6,))=\"4\"))-Отгрузка[[#This Row],[Количество]])*Отгрузка[[#This Row],[Доставка]],)","v":2500},null,{"$f":"Отгрузка[[#This Row],[ИТОГО]]+Отгрузка[[#This Row],[Порожний прогон]]+Отгрузка[[#This Row],[Простой]]","v":4000},{"$f":"IFERROR(IF(INDEX(АБС[Поставщик],MATCH(Отгрузка!$D2,АБС[Госномер ТС],0))=Отгрузка[[#This Row],[Контрагент]],\"Самовывоз\",INDEX(АБС[Поставщик],MATCH(Отгрузка!$D2,АБС[Госномер ТС],0))),\"\")","v":"Самовывоз"}]
["2018-01-01",null,"ООО \"Атика\"","в580ух199","БСТ В7,5 П3 F100 W2 (Гравий)",7,{"$f":"SUMPRODUCT(Спецификация[Цена]*(Спецификация[Продукция]=Отгрузка[[#This Row],[Продукция]])*(Спецификация[Контрагент]=Отгрузка[[#This Row],[Контрагент]])*(Спецификация[Начало]<=Отгрузка[[#This Row],[Дата]])*((Спецификация[Окончание]=\"\")*99999+Спецификация[Окончание]>=Отгрузка[[#This Row],[Дата]]))","v":2900},500,{"$f":"Отгрузка[[#This Row],[Количество]]*Отгрузка[[#This Row],[Стоимость]]+Отгрузка[[#This Row],[Доставка]]*Отгрузка[[#This Row],[Количество]]","v":23800},{"$f":"IFERROR(MAX(,MIN(VLOOKUP(Отгрузка[[#This Row],[Госномер ТС]],АБС[[Госномер ТС]:[Объем]],5,),7+(LEFTB(VLOOKUP(Отгрузка[[#This Row],[Госномер ТС]],АБС[[Госномер ТС]:[Ось]],6,))=\"4\"))-Отгрузка[[#This Row],[Количество]])*Отгрузка[[#This Row],[Доставка]],)","v":0},null,{"$f":"Отгрузка[[#This Row],[ИТОГО]]+Отгрузка[[#This Row],[Порожний прогон]]+Отгрузка[[#This Row],[Простой]]","v":23800},{"$f":"IFERROR(IF(INDEX(АБС[Поставщик],MATCH(Отгрузка!$D3,АБС[Госномер ТС],0))=Отгрузка[[#This Row],[Контрагент]],\"Самовывоз\",INDEX(АБС[Поставщик],MATCH(Отгрузка!$D3,АБС[Госномер ТС],0))),\"\")","v":"Ч/Л \"Райнур\""}]
["2018-01-01",null,"ООО \"Атика\"","т564вт64","БСТ В7,5 П3 F100 W2 (Гравий)",10,{"$f":"SUMPRODUCT(Спецификация[Цена]*(Спецификация[Продукция]=Отгрузка[[#This Row],[Продукция]])*(Спецификация[Контрагент]=Отгрузка[[#This Row],[Контрагент]])*(Спецификация[Начало]<=Отгрузка[[#This Row],[Дата]])*((Спецификация[Окончание]=\"\")*99999+Спецификация[Окончание]>=Отгрузка[[#This Row],[Дата]]))","v":2900},500,{"$f":"Отгрузка[[#This Row],[Количество]]*Отгрузка[[#This Row],[Стоимость]]+Отгрузка[[#This Row],[Доставка]]*Отгрузка[[#This Row],[Количество]]","v":34000},{"$f":"IFERROR(MAX(,MIN(VLOOKUP(Отгрузка[[#This Row],[Госномер ТС]],АБС[[Госномер ТС]:[Объем]],5,),7+(LEFTB(VLOOKUP(Отгрузка[[#This Row],[Госномер ТС]],АБС[[Госномер ТС]:[Ось]],6,))=\"4\"))-Отгрузка[[#This Row],[Количество]])*Отгрузка[[#This Row],[Доставка]],)","v":0},null,{"$f":"Отгрузка[[#This Row],[ИТОГО]]+Отгрузка[[#This Row],[Порожний прогон]]+Отгрузка[[#This Row],[Простой]]","v":34000},{"$f":"IFERROR(IF(INDEX(АБС[Поставщик],MATCH(Отгрузка!$D4,АБС[Госномер ТС],0))=Отгрузка[[#This Row],[Контрагент]],\"Самовывоз\",INDEX(АБС[Поставщик],MATCH(Отгрузка!$D4,АБС[Госномер ТС],0))),\"\")","v":"Ч/Л \"Наумчик\""}]
["2018-01-01",null,"ООО \"Атика\"","т564вт64","БСТ В7,5 П3 F100 W2 (Гравий)",7,{"$f":"SUMPRODUCT(Спецификация[Цена]*(Спецификация[Продукция]=Отгрузка[[#This Row],[Продукция]])*(Спецификация[Контрагент]=Отгрузка[[#This Row],[Контрагент]])*(Спецификация[Начало]<=Отгрузка[[#This Row],[Дата]])*((Спецификация[Окончание]=\"\")*99999+Спецификация[Окончание]>=Отгрузка[[#This Row],[Дата]]))","v":2900},500,{"$f":"Отгрузка[[#This Row],[Количество]]*Отгрузка[[#This Row],[Стоимость]]+Отгрузка[[#This Row],[Доставка]]*Отгрузка[[#This Row],[Количество]]","v":23800},{"$f":"IFERROR(MAX(,MIN(VLOOKUP(Отгрузка[[#This Row],[Госномер ТС]],АБС[[Госномер ТС]:[Объем]],5,),7+(LEFTB(VLOOKUP(Отгрузка[[#This Row],[Госномер ТС]],АБС[[Госномер ТС]:[Ось]],6,))=\"4\"))-Отгрузка[[#This Row],[Количество]])*Отгрузка[[#This Row],[Доставка]],)","v":0},null,{"$f":"Отгрузка[[#This Row],[ИТОГО]]+Отгрузка[[#This Row],[Порожний прогон]]+Отгрузка[[#This Row],[Простой]]","v":23800},{"$f":"IFERROR(IF(INDEX(АБС[Поставщик],MATCH(Отгрузка!$D5,АБС[Госномер ТС],0))=Отгрузка[[#This Row],[Контрагент]],\"Самовывоз\",INDEX(АБС[Поставщик],MATCH(Отгрузка!$D5,АБС[Госномер ТС],0))),\"\")","v":"Ч/Л \"Наумчик\""}]
["2018-01-01",null,"ООО \"Атика\"","т564вт64","БСТ В7,5 П3 F100 W2 (Гравий)",4,{"$f":"SUMPRODUCT(Спецификация[Цена]*(Спецификация[Продукция]=Отгрузка[[#This Row],[Продукция]])*(Спецификация[Контрагент]=Отгрузка[[#This Row],[Контрагент]])*(Спецификация[Начало]<=Отгрузка[[#This Row],[Дата]])*((Спецификация[Окончание]=\"\")*99999+Спецификация[Окончание]>=Отгрузка[[#This Row],[Дата]]))","v":2900},500,{"$f":"Отгрузка[[#This Row],[Количество]]*Отгрузка[[#This Row],[Стоимость]]+Отгрузка[[#This Row],[Доставка]]*Отгрузка[[#This Row],[Количество]]","v":13600},{"$f":"IFERROR(MAX(,MIN(VLOOKUP(Отгрузка[[#This Row],[Госномер ТС]],АБС[[Госномер ТС]:[Объем]],5,),7+(LEFTB(VLOOKUP(Отгрузка[[#This Row],[Госномер ТС]],АБС[[Госномер ТС]:[Ось]],6,))=\"4\"))-Отгрузка[[#This Row],[Количество]])*Отгрузка[[#This Row],[Доставка]],)","v":1500},null,{"$f":"Отгрузка[[#This Row],[ИТОГО]]+Отгрузка[[#This Row],[Порожний прогон]]+Отгрузка[[#This Row],[Простой]]","v":15100},{"$f":"IFERROR(IF(INDEX(АБС[Поставщик],MATCH(Отгрузка!$D6,АБС[Госномер ТС],0))=Отгрузка[[#This Row],[Контрагент]],\"Самовывоз\",INDEX(АБС[Поставщик],MATCH(Отгрузка!$D6,АБС[Госномер ТС],0))),\"\")","v":"Ч/Л \"Наумчик\""}]
["2018-01-01",null,"ООО \"Атика\"","м954ко10","БСТ В7,5 П3 F100 W2 (Гравий)",10,{"$f":"SUMPRODUCT(Спецификация[Цена]*(Спецификация[Продукция]=Отгрузка[[#This Row],[Продукция]])*(Спецификация[Контрагент]=Отгрузка[[#This Row],[Контрагент]])*(Спецификация[Начало]<=Отгрузка[[#This Row],[Дата]])*((Спецификация[Окончание]=\"\")*99999+Спецификация[Окончание]>=Отгрузка[[#This Row],[Дата]]))","v":2900},500,{"$f":"Отгрузка[[#This Row],[Количество]]*Отгрузка[[#This Row],[Стоимость]]+Отгрузка[[#This Row],[Доставка]]*Отгрузка[[#This Row],[Количество]]","v":34000},{"$f":"IFERROR(MAX(,MIN(VLOOKUP(Отгрузка[[#This Row],[Госномер ТС]],АБС[[Госномер ТС]:[Объем]],5,),7+(LEFTB(VLOOKUP(Отгрузка[[#This Row],[Госномер ТС]],АБС[[Госномер ТС]:[Ось]],6,))=\"4\"))-Отгрузка[[#This Row],[Количество]])*Отгрузка[[#This Row],[Доставка]],)","v":0},null,{"$f":"Отгрузка[[#This Row],[ИТОГО]]+Отгрузка[[#This Row],[Порожний прогон]]+Отгрузка[[#This Row],[Простой]]","v":34000},{"$f":"IFERROR(IF(INDEX(АБС[Поставщик],MATCH(Отгрузка!$D7,АБС[Госномер ТС],0))=Отгрузка[[#This Row],[Контрагент]],\"Самовывоз\",INDEX(АБС[Поставщик],MATCH(Отгрузка!$D7,АБС[Госномер ТС],0))),\"\")","v":"Ч/Л \"Рустам\""}]
["2018-01-01",null,"ООО \"Атика\"","м954ко10","БСТ В7,5 П3 F100 W2 (Гравий)",7,{"$f":"SUMPRODUCT(Спецификация[Цена]*(Спецификация[Продукция]=Отгрузка[[#This Row],[Продукция]])*(Спецификация[Контрагент]=Отгрузка[[#This Row],[Контрагент]])*(Спецификация[Начало]<=Отгрузка[[#This Row],[Дата]])*((Спецификация[Окончание]=\"\")*99999+Спецификация[Окончание]>=Отгрузка[[#This Row],[Дата]]))","v":2900},500,{"$f":"Отгрузка[[#This Row],[Количество]]*Отгрузка[[#This Row],[Стоимость]]+Отгрузка[[#This Row],[Доставка]]*Отгрузка[[#This Row],[Количество]]","v":23800},{"$f":"IFERROR(MAX(,MIN(VLOOKUP(Отгрузка[[#This Row],[Госномер ТС]],АБС[[Госномер ТС]:[Объем]],5,),7+(LEFTB(VLOOKUP(Отгрузка[[#This Row],[Госномер ТС]],АБС[[Госномер ТС]:[Ось]],6,))=\"4\"))-Отгрузка[[#This Row],[Количество]])*Отгрузка[[#This Row],[Доставка]],)","v":500},null,{"$f":"Отгрузка[[#This Row],[ИТОГО]]+Отгрузка[[#This Row],[Порожний прогон]]+Отгрузка[[#This Row],[Простой]]","v":24300},{"$f":"IFERROR(IF(INDEX(АБС[Поставщик],MATCH(Отгрузка!$D8,АБС[Госномер ТС],0))=Отгрузка[[#This Row],[Контрагент]],\"Самовывоз\",INDEX(АБС[Поставщик],MATCH(Отгрузка!$D8,АБС[Госномер ТС],0))),\"\")","v":"Ч/Л \"Рустам\""}]
["2018-01-01",null,"ООО \"Атика\"","м954ко10","БСТ В7,5 П3 F100 W2 (Гравий)",8,{"$f":"SUMPRODUCT(Спецификация[Цена]*(Спецификация[Продукция]=Отгрузка[[#This Row],[Продукция]])*(Спецификация[Контрагент]=Отгрузка[[#This Row],[Контрагент]])*(Спецификация[Начало]<=Отгрузка[[#This Row],[Дата]])*((Спецификация[Окончание]=\"\")*99999+Спецификация[Окончание]>=Отгрузка[[#This Row],[Дата]]))","v":2900},500,{"$f":"Отгрузка[[#This Row],[Количество]]*Отгрузка[[#This Row],[Стоимость]]+Отгрузка[[#This Row],[Доставка]]*Отгрузка[[#This Row],[Количество]]","v":27200},{"$f":"IFERROR(MAX(,MIN(VLOOKUP(Отгрузка[[#This Row],[Госномер ТС]],АБС[[Госномер ТС]:[Объем]],5,),7+(LEFTB(VLOOKUP(Отгрузка[[#This Row],[Госномер ТС]],АБС[[Госномер ТС]:[Ось]],6,))=\"4\"))-Отгрузка[[#This Row],[Количество]])*Отгрузка[[#This Row],[Доставка]],)","v":0},null,{"$f":"Отгрузка[[#This Row],[ИТОГО]]+Отгрузка[[#This Row],[Порожний прогон]]+Отгрузка[[#This Row],[Простой]]","v":27200},{"$f":"IFERROR(IF(INDEX(АБС[Поставщик],MATCH(Отгрузка!$D9,АБС[Госномер ТС],0))=Отгрузка[[#This Row],[Контрагент]],\"Самовывоз\",INDEX(АБС[Поставщик],MATCH(Отгрузка!$D9,АБС[Госномер ТС],0))),\"\")","v":"Ч/Л \"Рустам\""}]
[null,null,null,null,null,null,{"$f":"SUMPRODUCT(Спецификация[Цена]*(Спецификация[Продукция]=Отгрузка[[#This Row],[Продукция]])*(Спецификация[Контрагент]=Отгрузка[[#This Row],[Контрагент]])*(Спецификация[Начало]<=Отгрузка[[#This Row],[Дата]])*((Спецификация[Окончание]=\"\")*99999+Спецификация[Окончание]>=Отгрузка[[#This Row],[Дата]]))","v":0},null,{"$f":"Отгрузка[[#This Row],[Количество]]*Отгрузка[[#This Row],[Стоимость]]+Отгрузка[[#This Row],[Доставка]]*Отгрузка[[#This Row],[Количество]]","v":0},{"$f":"IFERROR(MAX(,MIN(VLOOKUP(Отгрузка[[#This Row],[Госномер ТС]],АБС[[Госномер ТС]:[Объем]],5,),7+(LEFTB(VLOOKUP(Отгрузка[[#This Row],[Госномер ТС]],АБС[[Госномер ТС]:[Ось]],6,))=\"4\"))-Отгрузка[[#This Row],[Количество]])*Отгрузка[[#This Row],[Доставка]],)","v":0},null,{"$f":"Отгрузка[[#This Row],[ИТОГО]]+Отгрузка[[#This Row],[Порожний прогон]]+Отгрузка[[#This Row],[Простой]]","v":0},{"$f":"IFERROR(IF(INDEX(АБС[Поставщик],MATCH(Отгрузка!$D10,АБС[Госномер ТС],0))=Отгрузка[[#This Row],[Контрагент]],\"Самовывоз\",INDEX(АБС[Поставщик],MATCH(Отгрузка!$D10,АБС[Госномер ТС],0))),\"\")","v":""}]
[null,null,null,null,null,null,{"$f":"SUMPRODUCT(Спецификация[Цена]*(Спецификация[Продукция]=Отгрузка[[#This Row],[Продукция]])*(Спецификация[Контрагент]=Отгрузка[[#This Row],[Контрагент]])*(Спецификация[Начало]<=Отгрузка[[#This Row],[Дата]])*((Спецификация[Окончание]=\"\")*99999+Спецификация[Окончание]>=Отгрузка[[#This Row],[Дата]]))","v":0},null,{"$f":"Отгрузка[[#This Row],[Количество]]*Отгрузка[[#This Row],[Стоимость]]+Отгрузка[[#This Row],[Доставка]]*Отгрузка[[#This Row],[Количество]]","v":0},{"$f":"IFERROR(MAX(,MIN(VLOOKUP(Отгрузка[[#This Row],[Госномер ТС]],АБС[[Госномер ТС]:[Объем]],5,),7+(LEFTB(VLOOKUP(Отгрузка[[#This Row],[Госномер ТС]],АБС[[Госномер ТС]:[Ось]],6,))=\"4\"))-Отгрузка[[#This Row],[Количество]])*Отгрузка[[#This Row],[Доставка]],)","v":0},null,{"$f":"Отгрузка[[#This Row],[ИТОГО]]+Отгрузка[[#This Row],[Порожний прогон]]+Отгрузка[[#This Row],[Простой]]","v":0},{"$f":"IFERROR(IF(INDEX(АБС[Поставщик],MATCH(Отгрузка!$D11,АБС[Госномер ТС],0))=Отгрузка[[#This Row],[Контрагент]],\"Самовывоз\",INDEX(АБС[Поставщик],MATCH(Отгрузка!$D11,АБС[Госномер ТС],0))),\"\")","v":""}]
[null,null,null,null,null,null,{"$f":"SUMPRODUCT(Спецификация[Цена]*(Спецификация[Продукция]=Отгрузка[[#This Row],[Продукция]])*(Спецификация[Контрагент]=Отгрузка[[#This Row],[Контрагент]])*(Спецификация[Начало]<=Отгрузка[[#This Row],[Дата]])*((Спецификация[Окончание]=\"\")*99999+Спецификация[Окончание]>=Отгрузка[[#This Row],[Дата]]))","v":0},null,{"$f":"Отгрузка[[#This Row],[Количество]]*Отгрузка[[#This Row],[Стоимость]]+Отгрузка[[#This Row],[Доставка]]*Отгрузка[[#This Row],[Количество]]","v":0},{"$f":"IFERROR(MAX(,MIN(VLOOKUP(Отгрузка[[#This Row],[Госномер ТС]],АБС[[Госномер ТС]:[Объем]],5,),7+(LEFTB(VLOOKUP(Отгрузка[[#This Row],[Госномер ТС]],АБС[[Госномер ТС]:[Ось]],6,))=\"4\"))-Отгрузка[[#This Row],[Количество]])*Отгрузка[[#This Row],[Доставка]],)","v":0},null,{"$f":"Отгрузка[[#This Row],[ИТОГО]]+Отгрузка[[#This Row],[Порожний прогон]]+Отгрузка[[#This Row],[Простой]]","v":0},{"$f":"IFERROR(IF(INDEX(АБС[Поставщик],MATCH(Отгрузка!$D12,АБС[Госномер ТС],0))=Отгрузка[[#This Row],[Контрагент]],\"Самовывоз\",INDEX(АБС[Поставщик],MATCH(Отгрузка!$D12,АБС[Госномер ТС],0))),\"\")","v":""}]
[null,null,null,null,null,null,{"$f":"SUMPRODUCT(Спецификация[Цена]*(Спецификация[Продукция]=Отгрузка[[#This Row],[Продукция]])*(Спецификация[Контрагент]=Отгрузка[[#This Row],[Контрагент]])*(Спецификация[Начало]<=Отгрузка[[#This Row],[Дата]])*((Спецификация[Окончание]=\"\")*99999+Спецификация[Окончание]>=Отгрузка[[#This Row],[Дата]]))","v":0},null,{"$f":"Отгрузка[[#This Row],[Количество]]*Отгрузка[[#This Row],[Стоимость]]+Отгрузка[[#This Row],[Доставка]]*Отгрузка[[#This Row],[Количество]]","v":0},{"$f":"IFERROR(MAX(,MIN(VLOOKUP(Отгрузка[[#This Row],[Госномер ТС]],АБС[[Госномер ТС]:[Объем]],5,),7+(LEFTB(VLOOKUP(Отгрузка[[#This Row],[Госномер ТС]],АБС[[Госномер ТС]:[Ось]],6,))=\"4\"))-Отгрузка[[#This Row],[Количество]])*Отгрузка[[#This Row],[Доставка]],)","v":0},null,{"$f":"Отгрузка[[#This Row],[ИТОГО]]+Отгрузка[[#This Row],[Порожний прогон]]+Отгрузка[[#This Row],[Простой]]","v":0},{"$f":"IFERROR(IF(INDEX(АБС[Поставщик],MATCH(Отгрузка!$D13,АБС[Госномер ТС],0))=Отгрузка[[#This Row],[Контрагент]],\"Самовывоз\",INDEX(АБС[Поставщик],MATCH(Отгрузка!$D13,АБС[Госномер ТС],0))),\"\")","v":""}]
[null,null,null,null,null,null,{"$f":"SUMPRODUCT(Спецификация[Цена]*(Спецификация[Продукция]=Отгрузка[[#This Row],[Продукция]])*(Спецификация[Контрагент]=Отгрузка[[#This Row],[Контрагент]])*(Спецификация[Начало]<=Отгрузка[[#This Row],[Дата]])*((Спецификация[Окончание]=\"\")*99999+Спецификация[Окончание]>=Отгрузка[[#This Row],[Дата]]))","v":0},null,{"$f":"Отгрузка[[#This Row],[Количество]]*Отгрузка[[#This Row],[Стоимость]]+Отгрузка[[#This Row],[Доставка]]*Отгрузка[[#This Row],[Количество]]","v":0},{"$f":"IFERROR(MAX(,MIN(VLOOKUP(Отгрузка[[#This Row],[Госномер ТС]],АБС[[Госномер ТС]:[Объем]],5,),7+(LEFTB(VLOOKUP(Отгрузка[[#This Row],[Госномер ТС]],АБС[[Госномер ТС]:[Ось]],6,))=\"4\"))-Отгрузка[[#This Row],[Количество]])*Отгрузка[[#This Row],[Доставка]],)","v":0},null,{"$f":"Отгрузка[[#This Row],[ИТОГО]]+Отгрузка[[#This Row],[Порожний прогон]]+Отгрузка[[#This Row],[Простой]]","v":0},{"$f":"IFERROR(IF(INDEX(АБС[Поставщик],MATCH(Отгрузка!$D14,АБС[Госномер ТС],0))=Отгрузка[[#This Row],[Контрагент]],\"Самовывоз\",INDEX(АБС[Поставщик],MATCH(Отгрузка!$D14,АБС[Госномер ТС],0))),\"\")","v":""}]

{"sheet":"Спецификация","index":5,"n_rows":21,"n_cols":9,"rows_kept":21,"cut":false,"hidden":true,"merged":[]}
["Счет","Начало","Окончание","Контрагент","Продукция","Цена","Договор","№ спецификации","Завел (Ответственный)"]
[{"$f":"IF(Спецификация[[#This Row],[Начало]]=\"\",\"\",(SUMPRODUCT(1/COUNTIF($A$1:A1,$A$1:A1))))","v":1},"2018-01-01","2018-03-02","ООО \"Атика\"","БСТ В7,5 П3 F100 W2 (Гравий)",2900]
[{"$f":"IF(Спецификация[[#This Row],[Начало]]=\"\",\"\",(SUMPRODUCT(1/COUNTIF($A$1:A2,$A$1:A2))))","v":2},"2018-03-03","2018-09-05","ООО \"Атика\"","БСТ В7,5 П3 F100 W2 (Гравий)",3200]
[{"$f":"IF(Спецификация[[#This Row],[Начало]]=\"\",\"\",(SUMPRODUCT(1/COUNTIF($A$1:A3,$A$1:A3))))","v":3},"2018-01-01",null,"ООО \"Атика\"","БСТ В12,5 П3 F100 W2 (Гравий)",3000]
[{"$f":"IF(Спецификация[[#This Row],[Начало]]=\"\",\"\",(SUMPRODUCT(1/COUNTIF($A$1:A4,$A$1:A4))))","v":4},"2018-01-01",null,"ООО \"Атика\"","БСТ В12,5 П4 F100 W2 (Гравий)",3000]
[{"$f":"IF(Спецификация[[#This Row],[Начало]]=\"\",\"\",(SUMPRODUCT(1/COUNTIF($A$1:A5,$A$1:A5))))","v":5},"2018-01-01",null,"ООО \"Атика\"","БСТ В15 П3 F150 W6 (Гравий)",3150]
[{"$f":"IF(Спецификация[[#This Row],[Начало]]=\"\",\"\",(SUMPRODUCT(1/COUNTIF($A$1:A6,$A$1:A6))))","v":6},"2018-01-01",null,"ООО \"Атика\"","БСТ В15 П3 F150 W6 (Гравий)",3150]
[{"$f":"IF(Спецификация[[#This Row],[Начало]]=\"\",\"\",(SUMPRODUCT(1/COUNTIF($A$1:A7,$A$1:A7))))","v":7},"2018-01-01",null,"ООО \"Атика\"","БСТ В20 П3 F150 W8 (Гравий)",3300]
[{"$f":"IF(Спецификация[[#This Row],[Начало]]=\"\",\"\",(SUMPRODUCT(1/COUNTIF($A$1:A8,$A$1:A8))))","v":8},"2018-01-01",null,"ООО \"Атика\"","БСТ В20 П4 F150 W8 (Гравий)",3300]
[{"$f":"IF(Спецификация[[#This Row],[Начало]]=\"\",\"\",(SUMPRODUCT(1/COUNTIF($A$1:A9,$A$1:A9))))","v":9},"2018-01-01",null,"ООО \"Атика\"","БСТ В22,5 П3 F200 W8 (Гравий)",3400]
[{"$f":"IF(Спецификация[[#This Row],[Начало]]=\"\",\"\",(SUMPRODUCT(1/COUNTIF($A$1:A10,$A$1:A10))))","v":10},"2018-01-01",null,"ООО \"Атика\"","БСТ В22,5 П4 F200 W8 (Гравий)",3400]
[{"$f":"IF(Спецификация[[#This Row],[Начало]]=\"\",\"\",(SUMPRODUCT(1/COUNTIF($A$1:A11,$A$1:A11))))","v":11},"2018-01-01",null,"ООО \"Атика\"","БСТ В25 П3 F200 W8 (Гравий)",3450]
[{"$f":"IF(Спецификация[[#This Row],[Начало]]=\"\",\"\",(SUMPRODUCT(1/COUNTIF($A$1:A12,$A$1:A12))))","v":12},"2018-01-01",null,"ООО \"Атика\"","БСТ В25 П4 F200 W8 (Гравий)",3450]
[{"$f":"IF(Спецификация[[#This Row],[Начало]]=\"\",\"\",(SUMPRODUCT(1/COUNTIF($A$1:A13,$A$1:A13))))","v":13},"2018-01-01",null,"ООО \"Атика\"","БСТ В25 П3 F300 W10 (Гранит)",3650]
[{"$f":"IF(Спецификация[[#This Row],[Начало]]=\"\",\"\",(SUMPRODUCT(1/COUNTIF($A$1:A14,$A$1:A14))))","v":14},"2018-01-01",null,"ООО \"Атика\"","БСТ В25 П4 F300 W10 (Гранит)",3650]
[{"$f":"IF(Спецификация[[#This Row],[Начало]]=\"\",\"\",(SUMPRODUCT(1/COUNTIF($A$1:A15,$A$1:A15))))","v":""}]
[{"$f":"IF(Спецификация[[#This Row],[Начало]]=\"\",\"\",(SUMPRODUCT(1/COUNTIF($A$1:A16,$A$1:A16))))","v":""}]
[{"$f":"IF(Спецификация[[#This Row],[Начало]]=\"\",\"\",(SUMPRODUCT(1/COUNTIF($A$1:A17,$A$1:A17))))","v":""}]
[{"$f":"IF(Спецификация[[#This Row],[Начало]]=\"\",\"\",(SUMPRODUCT(1/COUNTIF($A$1:A18,$A$1:A18))))","v":""}]
[{"$f":"IF(Спецификация[[#This Row],[Начало]]=\"\",\"\",(SUMPRODUCT(1/COUNTIF($A$1:A19,$A$1:A19))))","v":""}]
[{"$f":"IF(Спецификация[[#This Row],[Начало]]=\"\",\"\",(SUMPRODUCT(1/COUNTIF($A$1:A20,$A$1:A20))))","v":""}]

{"sheet":"Завод","index":6,"n_rows":17,"n_cols":26,"rows_kept":17,"cut":false,"hidden":false,"merged":[[0,6,0,15],[0,16,0,25]]}
[null,null,null,null,null,null,"Списание по норме завода",null,null,null,null,null,null,null,null,null,"Списание по норме"]
["Дата","Госномер ТС","Продукция","Количество","Заезд","Выезд","Цемент \"завод\"","Песок строительный \"завод\"","Песок растворный \"завод\"","Гранит \"завод\"","Гравий \"завод\"","Вторичка \"завод\"","Вода \"завод\"","СП-3 \"завод\"","Мурапор \"завод\"","Криопласт \"завод\"","Цемент","Песок строительный","Песок растворный","Гранит","Гравий","Вторичка","Вода","СП-3","Мурапор","Криопласт"]
["2018-03-03","к187ус77","БСТ В22,5 П3 F100 W2 (Гравий)",3]
["2018-01-01","н001тс777","БСТ В7,5 П3 F100 W2 (Гравий)",2]
[null,null,"БСТ В25 П3 F100 W2 (Гравий)"]
[]
[]
[]
[]
[]
[]
[]
[]
[]
[null,null,{"$f":"MID(C3,1,12)&MID(C3,21,29)","v":"БСТ В22,5 П3 (Гравий)"}]
[null,null,{"$f":"MID(C4,1,12)&MID(C4,21,29)","v":"БСТ В7,5 П3 (Гравий)"}]
[null,null,{"$f":"MID(C5,1,12)&MID(C5,21,29)","v":"БСТ В25 П3 FГравий)"}]

{"sheet":"Списание завод","index":7,"n_rows":5,"n_cols":25,"rows_kept":5,"cut":false,"hidden":true,"merged":[]}
["Начало","Окончание","Продукция","Цемент","Песок строительный","Песок растворный","Гранит","Гравий","Вторичка","Вода","СП-3","Мурапор","Криопласт","Себестоимость",null,null,null,null,null,null,null,null,null,null,"Цены на инертные"]
["2018-01-01","2018-03-02","БСТ В7,5 П3 (Гравий)",160,980,null,null,935,null,175,2.21,null,null,{"$f":"(Списание[[#This Row],[Цемент]]/1000*(SUMPRODUCT(Цены_инертные[Цемент]*(Цены_инертные[Начало]<=Списание[[#This Row],[Начало]])*((Цены_инертные[Окончание]=\"\")*99999+Цены_инертные[Окончание]>=Списание[[#This Row],[Окончание]]))))+(Списание[[#This Row],[Песок строительный]]/1000*(SUMPRODUCT(Цены_инертные[Песок строительный]*(Цены_инертные[Начало]<=Списание[[#This Row],[Начало]])*((Цены_инертные[Окончание]=\"\")*99999+Цены_инертные[Окончание]>=Списание[[#This Row],[Окончание]]))))+(Списание[[#This Row],[Песок растворный]]/1000*(SUMPRODUCT(Цены_инертные[Песок растворный]*(Цены_инертные[Начало]<=Списание[[#This Row],[Начало]])*((Цены_инертные[Окончание]=\"\")*99999+Цены_инертные[Окончание]>=Списание[[#This Row],[Окончание]]))))+(Списание[[#This Row],[Гранит]]/1000*(SUMPRODUCT(Цены_инертные[Гранит]*(Цены_инертные[Начало]<=Списание[[#This Row],[Начало]])*((Цены_инертные[Окончание]=\"\")*99999+Цены_инертные[Окончание]>=Списание[[#This Row],[Окончание]]))))+(Списание[[#This Row],[Гравий]]/1000*(SUMPRODUCT(Цены_инертные[Гравий]*(Цены_инертные[Начало]<=Списание[[#This Row],[Начало]])*((Цены_инертные[Окончание]=\"\")*99999+Цены_инертные[Окончание]>=Списание[[#This Row],[Окончание]]))))+(Списание[[#This Row],[Вторичка]]/1000*(SUMPRODUCT(Цены_инертные[Вторичка]*(Цены_инертные[Начало]<=Списание[[#This Row],[Начало]])*((Цены_инертные[Окончание]=\"\")*99999+Цены_инертные[Окончание]>=Списание[[#This Row],[Окончание]]))))+(Списание[[#This Row],[Вода]]/1000*(SUMPRODUCT(Цены_инертные[Вода]*(Цены_инертные[Начало]<=Списание[[#This Row],[Начало]])*((Цены_инертные[Окончание]=\"\")*99999+Цены_инертные[Окончание]>=Списание[[#This Row],[Окончание]]))))+(Списание[[#This Row],[СП-3]]*(SUMPRODUCT(Цены_инертные[СП-3]*(Цены_инертные[Начало]<=Списание[[#This Row],[Начало]])*((Цены_инертные[Окончание]=\"\")*99999+Цены_инертные[Окончание]>=Списание[[#This Row],[Окончание]]))))+(Списание[[#This Row],[Мурапор]]*(SUMPRODUCT(Цены_инертные[Мурапор]*(Цены_инертные[Начало]<=Списание[[#This Row],[Начало]])*((Цены_инертные[Окончание]=\"\")*99999+Цены_инертные[Окончание]>=Списание[[#This Row],[Окончание]]))))+(Списание[[#This Row],[Криопласт]]*(SUMPRODUCT(Цены_инертные[Криопласт]*(Цены_инертные[Начало]<=Списание[[#This Row],[Начало]])*((Цены_инертные[Окончание]=\"\")*99999+Цены_инертные[Окончание]>=Списание[[#This Row],[Окончание]]))))","v":2751.68}]
["2018-03-03","2018-03-05","БСТ В7,5 П3 (Гравий)",150,970,null,null,1000,null,165,null,1.8,null,{"$f":"(Списание[[#This Row],[Цемент]]/1000*(SUMPRODUCT(Цены_инертные[Цемент]*(Цены_инертные[Начало]<=Списание[[#This Row],[Начало]])*((Цены_инертные[Окончание]=\"\")*99999+Цены_инертные[Окончание]>=Списание[[#This Row],[Окончание]]))))+(Списание[[#This Row],[Песок строительный]]/1000*(SUMPRODUCT(Цены_инертные[Песок строительный]*(Цены_инертные[Начало]<=Списание[[#This Row],[Начало]])*((Цены_инертные[Окончание]=\"\")*99999+Цены_инертные[Окончание]>=Списание[[#This Row],[Окончание]]))))+(Списание[[#This Row],[Песок растворный]]/1000*(SUMPRODUCT(Цены_инертные[Песок растворный]*(Цены_инертные[Начало]<=Списание[[#This Row],[Начало]])*((Цены_инертные[Окончание]=\"\")*99999+Цены_инертные[Окончание]>=Списание[[#This Row],[Окончание]]))))+(Списание[[#This Row],[Гранит]]/1000*(SUMPRODUCT(Цены_инертные[Гранит]*(Цены_инертные[Начало]<=Списание[[#This Row],[Начало]])*((Цены_инертные[Окончание]=\"\")*99999+Цены_инертные[Окончание]>=Списание[[#This Row],[Окончание]]))))+(Списание[[#This Row],[Гравий]]/1000*(SUMPRODUCT(Цены_инертные[Гравий]*(Цены_инертные[Начало]<=Списание[[#This Row],[Начало]])*((Цены_инертные[Окончание]=\"\")*99999+Цены_инертные[Окончание]>=Списание[[#This Row],[Окончание]]))))+(Списание[[#This Row],[Вторичка]]/1000*(SUMPRODUCT(Цены_инертные[Вторичка]*(Цены_инертные[Начало]<=Списание[[#This Row],[Начало]])*((Цены_инертные[Окончание]=\"\")*99999+Цены_инертные[Окончание]>=Списание[[#This Row],[Окончание]]))))+(Списание[[#This Row],[Вода]]/1000*(SUMPRODUCT(Цены_инертные[Вода]*(Цены_инертные[Начало]<=Списание[[#This Row],[Начало]])*((Цены_инертные[Окончание]=\"\")*99999+Цены_инертные[Окончание]>=Списание[[#This Row],[Окончание]]))))+(Списание[[#This Row],[СП-3]]*(SUMPRODUCT(Цены_инертные[СП-3]*(Цены_инертные[Начало]<=Списание[[#This Row],[Начало]])*((Цены_инертные[Окончание]=\"\")*99999+Цены_инертные[Окончание]>=Списание[[#This Row],[Окончание]]))))+(Списание[[#This Row],[Мурапор]]*(SUMPRODUCT(Цены_инертные[Мурапор]*(Цены_инертные[Начало]<=Списание[[#This Row],[Начало]])*((Цены_инертные[Окончание]=\"\")*99999+Цены_инертные[Окончание]>=Списание[[#This Row],[Окончание]]))))+(Списание[[#This Row],[Криопласт]]*(SUMPRODUCT(Цены_инертные[Криопласт]*(Цены_инертные[Начало]<=Списание[[#This Row],[Начало]])*((Цены_инертные[Окончание]=\"\")*99999+Цены_инертные[Окончание]>=Списание[[#This Row],[Окончание]]))))","v":3056.7550000000001}]
[null,null,null,null,null,null,null,null,null,null,null,null,null,{"$f":"(Списание[[#This Row],[Цемент]]/1000*(SUMPRODUCT(Цены_инертные[Цемент]*(Цены_инертные[Начало]<=Списание[[#This Row],[Начало]])*((Цены_инертные[Окончание]=\"\")*99999+Цены_инертные[Окончание]>=Списание[[#This Row],[Окончание]]))))+(Списание[[#This Row],[Песок строительный]]/1000*(SUMPRODUCT(Цены_инертные[Песок строительный]*(Цены_инертные[Начало]<=Списание[[#This Row],[Начало]])*((Цены_инертные[Окончание]=\"\")*99999+Цены_инертные[Окончание]>=Списание[[#This Row],[Окончание]]))))+(Списание[[#This Row],[Песок растворный]]/1000*(SUMPRODUCT(Цены_инертные[Песок растворный]*(Цены_инертные[Начало]<=Списание[[#This Row],[Начало]])*((Цены_инертные[Окончание]=\"\")*99999+Цены_инертные[Окончание]>=Списание[[#This Row],[Окончание]]))))+(Списание[[#This Row],[Гранит]]/1000*(SUMPRODUCT(Цены_инертные[Гранит]*(Цены_инертные[Начало]<=Списание[[#This Row],[Начало]])*((Цены_инертные[Окончание]=\"\")*99999+Цены_инертные[Окончание]>=Списание[[#This Row],[Окончание]]))))+(Списание[[#This Row],[Гравий]]/1000*(SUMPRODUCT(Цены_инертные[Гравий]*(Цены_инертные[Начало]<=Списание[[#This Row],[Начало]])*((Цены_инертные[Окончание]=\"\")*99999+Цены_инертные[Окончание]>=Списание[[#This Row],[Окончание]]))))+(Списание[[#This Row],[Вторичка]]/1000*(SUMPRODUCT(Цены_инертные[Вторичка]*(Цены_инертные[Начало]<=Списание[[#This Row],[Начало]])*((Цены_инертные[Окончание]=\"\")*99999+Цены_инертные[Окончание]>=Списание[[#This Row],[Окончание]]))))+(Списание[[#This Row],[Вода]]/1000*(SUMPRODUCT(Цены_инертные[Вода]*(Цены_инертные[Начало]<=Списание[[#This Row],[Начало]])*((Цены_инертные[Окончание]=\"\")*99999+Цены_инертные[Окончание]>=Списание[[#This Row],[Окончание]]))))+(Списание[[#This Row],[СП-3]]*(SUMPRODUCT(Цены_инертные[СП-3]*(Цены_инертные[Начало]<=Списание[[#This Row],[Начало]])*((Цены_инертные[Окончание]=\"\")*99999+Цены_инертные[Окончание]>=Списание[[#This Row],[Окончание]]))))+(Списание[[#This Row],[Мурапор]]*(SUMPRODUCT(Цены_инертные[Мурапор]*(Цены_инертные[Начало]<=Списание[[#This Row],[Начало]])*((Цены_инертные[Окончание]=\"\")*99999+Цены_инертные[Окончание]>=Списание[[#This Row],[Окончание]]))))+(Списание[[#This Row],[Криопласт]]*(SUMPRODUCT(Цены_инертные[Криопласт]*(Цены_инертные[Начало]<=Списание[[#This Row],[Начало]])*((Цены_инертные[Окончание]=\"\")*99999+Цены_инертные[Окончание]>=Списание[[#This Row],[Окончание]]))))","v":0}]
[null,null,null,null,null,null,null,null,null,null,null,null,null,{"$f":"(Списание[[#This Row],[Цемент]]/1000*(SUMPRODUCT(Цены_инертные[Цемент]*(Цены_инертные[Начало]<=Списание[[#This Row],[Начало]])*((Цены_инертные[Окончание]=\"\")*99999+Цены_инертные[Окончание]>=Списание[[#This Row],[Окончание]]))))+(Списание[[#This Row],[Песок строительный]]/1000*(SUMPRODUCT(Цены_инертные[Песок строительный]*(Цены_инертные[Начало]<=Списание[[#This Row],[Начало]])*((Цены_инертные[Окончание]=\"\")*99999+Цены_инертные[Окончание]>=Списание[[#This Row],[Окончание]]))))+(Списание[[#This Row],[Песок растворный]]/1000*(SUMPRODUCT(Цены_инертные[Песок растворный]*(Цены_инертные[Начало]<=Списание[[#This Row],[Начало]])*((Цены_инертные[Окончание]=\"\")*99999+Цены_инертные[Окончание]>=Списание[[#This Row],[Окончание]]))))+(Списание[[#This Row],[Гранит]]/1000*(SUMPRODUCT(Цены_инертные[Гранит]*(Цены_инертные[Начало]<=Списание[[#This Row],[Начало]])*((Цены_инертные[Окончание]=\"\")*99999+Цены_инертные[Окончание]>=Списание[[#This Row],[Окончание]]))))+(Списание[[#This Row],[Гравий]]/1000*(SUMPRODUCT(Цены_инертные[Гравий]*(Цены_инертные[Начало]<=Списание[[#This Row],[Начало]])*((Цены_инертные[Окончание]=\"\")*99999+Цены_инертные[Окончание]>=Списание[[#This Row],[Окончание]]))))+(Списание[[#This Row],[Вторичка]]/1000*(SUMPRODUCT(Цены_инертные[Вторичка]*(Цены_инертные[Начало]<=Списание[[#This Row],[Начало]])*((Цены_инертные[Окончание]=\"\")*99999+Цены_инертные[Окончание]>=Списание[[#This Row],[Окончание]]))))+(Списание[[#This Row],[Вода]]/1000*(SUMPRODUCT(Цены_инертные[Вода]*(Цены_инертные[Начало]<=Списание[[#This Row],[Начало]])*((Цены_инертные[Окончание]=\"\")*99999+Цены_инертные[Окончание]>=Списание[[#This Row],[Окончание]]))))+(Списание[[#This Row],[СП-3]]*(SUMPRODUCT(Цены_инертные[СП-3]*(Цены_инертные[Начало]<=Списание[[#This Row],[Начало]])*((Цены_инертные[Окончание]=\"\")*99999+Цены_инертные[Окончание]>=Списание[[#This Row],[Окончание]]))))+(Списание[[#This Row],[Мурапор]]*(SUMPRODUCT(Цены_инертные[Мурапор]*(Цены_инертные[Начало]<=Списание[[#This Row],[Начало]])*((Цены_инертные[Окончание]=\"\")*99999+Цены_инертные[Окончание]>=Списание[[#This Row],[Окончание]]))))+(Списание[[#This Row],[Криопласт]]*(SUMPRODUCT(Цены_инертные[Криопласт]*(Цены_инертные[Начало]<=Списание[[#This Row],[Начало]])*((Цены_инертные[Окончание]=\"\")*99999+Цены_инертные[Окончание]>=Списание[[#This Row],[Окончание]]))))","v":0}]

{"sheet":"LOG","index":8,"n_rows":98,"n_cols":6,"rows_kept":98,"cut":false,"hidden":true,"merged":[]}
["Компьютер","Ячейка","Дата/Время","Лист","Значение было","Значение стало"]
[]
[]
[]
[]
[]
[]
[]
[]
[]
[]
[]
[]
[]
[]
[]
[]
[]
[]
[]
[]
[]
[]
[]
[]
[]
[]
[]
[]
[]
[]
[]
[]
[]
[]
[]
[]
[]
[]
[]
[]
[]
[]
[]
[]
[]
[]
[]
[]
[]
[]
[]
[]
[]
[]
[]
[]
[]
[]
["Админ","G12","22.10.2018 12:03:18","Завод","","БСТ В7,5 П3"]
["Админ","C3","22.10.2018 12:04:10","Завод","БСТ В7,5 П3 F100 W2 (Гравий)","БСТ В10 П3 F100 W2 (Гравий)"]
["Админ","C3","22.10.2018 12:04:16","Завод","БСТ В10 П3 F100 W2 (Гравий)","БСТ В22,5 П3 F100 W2 (Гравий)"]
["Админ","G13","22.10.2018 12:07:49","Завод","",""]
["Админ","G13","22.10.2018 12:07:56","Завод","",""]
["Админ","G13","22.10.2018 12:08:55","Завод","",""]
["Админ","G13","22.10.2018 12:09:01","Завод","","БСТ"]
["Админ","G13","22.10.2018 12:09:08","Завод","БСТ","БС"]
["Админ","G13","22.10.2018 12:09:25","Завод","БС","БСТ"]
["Админ","G13","22.10.2018 12:09:51","Завод","БСТ","БСТ"]
["Админ","G14","22.10.2018 12:19:35","Завод","","2,5 П3 F100 W2 (Гравий)"]
["Админ","G14","22.10.2018 12:19:43","Завод","2,5 П3 F100 W2 (Гравий)","В22,5 П3 F100 W2 (Гравий)"]
["Админ","G13","22.10.2018 12:20:12","Завод","БСТ","БСТ"]
["Админ","G14","22.10.2018 12:20:19","Завод","В22,5 П3 F100 W2 (Гравий)","БСТ В22,5 П3 F100 W2 (Гра"]
["Админ","G14","22.10.2018 12:20:31","Завод","БСТ В22,5 П3 F100 W2 (Гра","БСТ В22,5 П3 F100 W2 (Г"]
["Админ","G14","22.10.2018 12:20:36","Завод","БСТ В22,5 П3 F100 W2 (Г","БСТ В22,5 П3 F100 W2 ("]
["Админ","G14","22.10.2018 12:20:41","Завод","БСТ В22,5 П3 F100 W2 (","БСТ В22,5 П3 F100 W2"]
["Админ","G15","22.10.2018 12:25:58","Завод","","5 П3 F100 W"]
["Админ","G15","22.10.2018 12:26:05","Завод","5 П3 F100 W",",5 П3 F100 "]
["Админ","G15","22.10.2018 12:26:16","Завод",",5 П3 F100 ","5 П3 F100 W2 (Гравий"]
["Админ","G15","22.10.2018 12:26:20","Завод","5 П3 F100 W2 (Гравий","22,5 П3 F100 W2 (Гра"]
["Админ","G15","22.10.2018 12:26:25","Завод","22,5 П3 F100 W2 (Гра"," П3 F100 W2 (Гравий)"]
["Админ","G16","22.10.2018 12:26:31","Завод","П3 F100 W2 (Гравий), П3 F100 W2 (Гравий),П3 F100 W2 (Гравий)","П3 F100 W2 (Гравий)"]
["Админ","C4","22.10.2018 12:27:38","Завод","БСТ В7,5 П3 F100 W2 (Гравий)","БСТ В7,5 П3 F100 W2 (Гравий)"]
["Админ","C5","22.10.2018 12:27:40","Завод","СТ В7,5 П3 F100 W2 (Гравий),БСТ В7,5 П3 F100 W2 (Гравий),БСТ В7,5 П3 F100 W2 (Гравий)","БСТ В7,5 П3 F100 W2 (Гравий)"]
["Админ","C5","22.10.2018 12:27:44","Завод","БСТ В7,5 П3 F100 W2 (Гравий)","БСТ В25 П3 F100 W2 (Гравий)"]
["Админ","G17","22.10.2018 12:27:46","Завод","3 F100 W2 (Гравий),П3 F100 W2 (Гравий),3 F100 W2 (Гравий)","3 F100 W2 (Гравий)"]
["Админ","G15","22.10.2018 12:28:45","Завод"," П3 F100 W2 (Гравий)","БСТ В22,5 П3 F100 W2"]
["Админ","G15","22.10.2018 12:29:05","Завод","БСТ В22,5 П3 F100 W2","БСТ В22,5 П"]
["Админ","G15","22.10.2018 12:29:11","Завод","БСТ В22,5 П","БСТ В22,5 П3"]
["Админ","G15","22.10.2018 12:29:58","Завод","БСТ В22,5 П3","БСТ В22,5 П32 (Гравий)"]
["Админ","G15","22.10.2018 12:30:11","Завод","БСТ В22,5 П32 (Гравий)","БСТ В22,5 П3 (Гравий)"]
["Админ","G14","22.10.2018 12:30:19","Завод","БСТ В22,5 П3 F100 W2",""]
["Админ","G13","22.10.2018 12:30:20","Завод","БСТ",""]
["Админ","G12","22.10.2018 12:30:20","Завод","БСТ В22,5 П",""]
["Админ","G16:G17","22.10.2018 12:30:23","Завод","СТ В22,5 П3 (Гравий),БСТ В22,5 П3 (Гравий),БСТ В7,5 П3 (Гравий),БСТ В25 П3 FГравий)","БСТ В7,5 П3 (Гравий),БСТ В25 П3 FГравий)"]
["Админ","G15:G17","22.10.2018 12:31:00","Завод","Т В22,5 П3 (Гравий),БСТ В22,5 П3 (Гравий),БСТ В7,5 П3 (Гравий),БСТ В25 П3 FГравий),БСТ В22,5 П3 (Гравий),БСТ В7,5 П3 (Гравий),БСТ В25 П3 FГравий)",",,"]
["Админ","C15:C17","22.10.2018 12:31:00","Завод","Т В22,5 П3 (Гравий),БСТ В22,5 П3 (Гравий),БСТ В7,5 П3 (Гравий),БСТ В25 П3 FГравий),БСТ В22,5 П3 (Гравий),БСТ В7,5 П3 (Гравий),БСТ В25 П3 FГравий)","БСТ В22,5 П3 (Гравий),БСТ В7,5 П3 (Гравий),БСТ В25 П3 FГравий)"]
["Админ","C17","22.10.2018 12:32:23","Завод","БСТ В25 П3 FГравий)","БСТ В25 П3 FГравий)"]